{"text_format":"1","workbook":"xlsx","n_sheets":6,"sheets":["Janvier","Février","Mars","Avril","Mai","Juin"],"not_rendered":{"charts":0,"images":0,"macros":0,"external_links":0,"defined_names":0,"comments":0,"pivot_tables":0},"unopened":[],"bounds":{"document_bytes":16777216,"sheet_cells":100000,"rows_first":2000,"rows_last":500,"rows_between":2000,"halvings":0,"cell_chars":16384,"cell_head_chars":4096},"cells_cut":0,"cells_raw":0,"read":"whole","date_system":"1900"}

{"sheet":"Janvier","index":0,"n_rows":13,"n_cols":7,"rows_kept":13,"cut":false,"hidden":false,"merged":[[0,2,0,3],[0,4,0,5]]}
[null,"Bonbache.fr","Bonbache.fr/Excel",null,"Bonbache.fr/ExcelVBA",null,"Livres Excel"]
[]
[null,null,"Article","Mois M-1","Mois M","Cumul"]
[null,null,"Ar001",0,85,{"$f":"D4+E4","v":85}]
[null,null,"Ar002",0,49,49]
[null,null,"Ar003",0,65,65]
[null,null,"Ar004",0,44,44]
[null,null,"Ar005",0,43,43]
[null,null,"Ar006",0,47,47]
[null,null,"Ar007",0,85,85]
[null,null,"Ar008",0,74,74]
[null,null,"Ar009",0,77,77]
[null,null,"Ar010",0,21,21]

{"sheet":"Février","index":1,"n_rows":13,"n_cols":7,"rows_kept":13,"cut":false,"hidden":false,"merged":[[0,2,0,3],[0,4,0,5]]}
[null,"Bonbache.fr","Bonbache.fr/Excel",null,"Bonbache.fr/ExcelVBA",null,"Livres Excel"]
[]
[null,null,"Article","Mois M-1","Mois M","Cumul"]
[null,null,"Ar001",null,51,{"$f":"D4+E4","v":51}]
[null,null,"Ar002",null,42,42]
[null,null,"Ar003",null,84,84]
[null,null,"Ar004",null,48,48]
[null,null,"Ar005",null,91,91]
[null,null,"Ar006",null,71,71]
[null,null,"Ar007",null,26,26]
[null,null,"Ar008",null,56,56]
[null,null,"Ar009",null,34,34]
[null,null,"Ar010",null,50,50]

{"sheet":"Mars","index":2,"n_rows":13,"n_cols":8,"rows_kept":13,"cut":false,"hidden":false,"merged":[[0,2,0,3],[0,4,0,5]]}
[null,"Bonbache.fr","Bonbache.fr/Excel",null,"Bonbache.fr/ExcelVBA",null,"Livres Excel"]
[]
[null,null,"Article","Mois M-1","Mois M","Cumul"]
[null,null,"Ar001",null,99,{"$f":"D4+E4","v":99}]
[null,null,"Ar002",null,84,84]
[null,null,"Ar003",null,61,61,null," "]
[null,null,"Ar004",null,55,55]
[null,null,"Ar005",null,70,70]
[null,null,"Ar006",null,98,98]
[null,null,"Ar007",null,95,95]
[null,null,"Ar008",null,76,76]
[null,null,"Ar009",null,27,27]
[null,null,"Ar010",null,27,27]

{"sheet":"Avril","index":3,"n_rows":13,"n_cols":7,"rows_kept":13,"cut":false,"hidden":false,"merged":[[0,2,0,3],[0,4,0,5]]}
[null,"Bonbache.fr","Bonbache.fr/Excel",null,"Bonbache.fr/ExcelVBA",null,"Livres Excel"]
[]
[null,null,"Article","Mois M-1","Mois M","Cumul"]
[null,null,"Ar001",null,73,{"$f":"D4+E4","v":73}]
[null,null,"Ar002",null,51,51]
[null,null,"Ar003",null,43,43]
[null,null,"Ar004",null,29,29]
[null,null,"Ar005",null,78,78]
[null,null,"Ar006",null,95,95]
[null,null,"Ar007",null,27,27]
[null,null,"Ar008",null,79,79]
[null,null,"Ar009",null,51,51]
[null,null,"Ar010",null,94,94]

{"sheet":"Mai","index":4,"n_rows":13,"n_cols":7,"rows_kept":13,"cut":false,"hidden":false,"merged":[[0,2,0,3],[0,4,0,5]]}
[null,"Bonbache.fr","Bonbache.fr/Excel",null,"Bonbache.fr/ExcelVBA",null,"Livres Excel"]
[]
[null,null,"Article","Mois M-1","Mois M","Cumul"]
[null,null,"Ar001",null,46,{"$f":"D4+E4","v":46}]
[null,null,"Ar002",null,59,59]
[null,null,"Ar003",null,28,28]
[null,null,"Ar004",null,71,71]
[null,null,"Ar005",null,92,92]
[null,null,"Ar006",null,70,70]
[null,null,"Ar007",null,37,37]
[null,null,"Ar008",null,21,21]
[null,null,"Ar009",null,79,79]
[null,null,"Ar010",null,79,79]

{"sheet":"Juin","index":5,"n_rows":13,"n_cols":7,"rows_kept":13,"cut":false,"hidden":false,"merged":[[0,2,0,3],[0,4,0,5]]}
[null,"Bonbache.fr","Bonbache.fr/Excel",null,"Bonbache.fr/ExcelVBA",null,"Livres Excel"]
[]
[null,null,"Article","Mois M-1","Mois M","Cumul"]
[null,null,"Ar001",null,83,{"$f":"D4+E4","v":83}]
[null,null,"Ar002",null,44,44]
[null,null,"Ar003",null,54,54]
[null,null,"Ar004",null,28,28]
[null,null,"Ar005",null,44,44]
[null,null,"Ar006",null,50,50]
[null,null,"Ar007",null,69,69]
[null,null,"Ar008",null,93,93]
[null,null,"Ar009",null,53,53]
[null,null,"Ar010",null,55,55]